fUSD/lending_fUSD_20260529
["ID","MTS","AMOUNT","RATE_DAILY","PERIOD"]
[423369323,1780067544000,-226.039021,0.00036084,7]
[423369321,1780067544000,-151.0,0.00036084,7]
[423369322,1780067544000,-233.934602,0.00036084,7]
[423369329,1780067544000,-151.0,0.00036084,7]
[423369331,1780067544000,-500.0,0.00036084,7]
[423369314,1780067544000,-151.0,0.00036084,7]
[423369332,1780067544000,-500.0,0.00036084,7]
[423369330,1780067544000,-500.0,0.00036084,7]
[423369338,1780067544000,-1617.77,0.00036131,10]
[423369334,1780067544000,-500.0,0.00036084,7]
[423369339,1780067544000,-1000.0,0.00036152,10]
[423369341,1780067544000,-1550.0,0.00036164,30]
[423369336,1780067544000,-9958.2869,0.00036093,2]
[423369335,1780067544000,-169.311225,0.00036084,7]
[423369324,1780067544000,-233.934602,0.00036084,7]
[423369310,1780067544000,-151.0,0.00036084,7]
[423369305,1780067544000,-1000.0,0.0003603,10]
[423369308,1780067544000,-2507.14,0.00036065,10]
[423369340,1780067544000,-3115.9,0.00036153,30]
[423369287,1780067544000,-2307.34833872,0.00035941,7]
[423369288,1780067544000,-1525.10584255,0.00035941,7]
[423369281,1780067544000,-315.0,0.000359,2]
[423369282,1780067544000,-1354.46190381,0.00035935,7]
[423369289,1780067544000,-2626.84449656,0.00035941,7]
[423369283,1780067544000,-1572.77776331,0.00035935,7]
[423369286,1780067544000,-2975.22071289,0.00035941,7]
[423369285,1780067544000,-1314.17739563,0.00035941,7]
[423369284,1780067544000,-1314.66833164,0.00035935,7]
[423369280,1780067544000,-200.0,0.000359,2]
[423369294,1780067544000,-9958.2869,0.00035965,2]
[423369290,1780067544000,-2738.88795935,0.00035941,7]
[423369313,1780067544000,-213.717974,0.00036084,7]
[423369292,1780067544000,-401.18163514,0.00035951,2]
[423369293,1780067544000,-300.0,0.00035964,10]
[423369302,1780067544000,-310.0,0.00036,2]
[423369297,1780067544000,-25117.99270211,0.00036,2]
[423369295,1780067544000,-310.82954872,0.00035999,10]
[423369300,1780067544000,-500.0,0.00036,14]
[423369296,1780067544000,-1000.0,0.00035999,37]
[423369299,1780067544000,-629.00474608,0.00036,2]
[423369298,1780067544000,-839.06638428,0.00036,2]
[423369303,1780067544000,-2881.73,0.00036,30]
[423369306,1780067544000,-1102.32,0.00036041,7]
[423369304,1780067544000,-1000.0,0.00036015,10]
[423369309,1780067544000,-151.0,0.00036084,7]
[423369307,1780067544000,-240.34811,0.00036053,30]
[423369291,1780067544000,-400.0,0.00035951,2]
[423369301,1780067544000,-3200.0,0.00036,20]
[423369337,1780067544000,-5000.0,0.00036103,10]
[423369342,1780067544000,-1000.0,0.00036167,10]
[423369374,1780067544000,-5000.0,0.00036571,2]
[423369373,1780067544000,-5000.0,0.00036571,2]
[423369379,1780067544000,-5000.0,0.00036578,2]
[423369382,1780067544000,-5000.0,0.00036628,10]
[423369384,1780067544000,-1285.51,0.00036691,10]
[423369380,1780067544000,-5158.45233987,0.00036578,2]
[423369383,1780067544000,-500.0,0.00036687,2]
[423369391,1780067544000,-348.48436793,0.00036704,2]
[423369389,1780067544000,-286.27700614,0.000367,120]
[423369387,1780067544000,-707.22,0.000367,20]
[423369386,1780067544000,-707.22,0.000367,6]
[423369381,1780067544000,-9958.2869,0.00036605,2]
[423369385,1780067544000,-1000.0,0.000367,10]
[423369375,1780067544000,-5000.0,0.00036571,2]
[423369388,1780067544000,-150.0,0.000367,120]
[423369393,1780067544000,-1000.0,0.00036715,10]
[423369395,1780067544000,-996.0,0.00036731,14]
[423369394,1780067544000,-163.0,0.00036729,11]
[423369396,1780067544000,-9958.2869,0.00036733,2]
[423369398,1780067544000,-1000.0,0.00036754,42]
[423369402,1780067544000,-1641.14989291,0.000368,2]
[423369399,1780067544000,-2515.07,0.00036776,10]
[423369400,1780067544000,-151.955364,0.00036797,14]
[423369401,1780067544000,-836540.90172296,0.000368,2]
[423369397,1780067544000,-150.0,0.0003675,120]
[423369403,1780067544000,-538781.66859087,0.000368,2]
[423369404,1780067544000,-47926.25142561,0.000368,2]
[423369343,1780067544000,-996.0,0.00036177,13]
[423369392,1780067544000,-1550.0,0.00036712,30]
[423369371,1780067544000,-5000.0,0.00036571,2]
[423369390,1780067544000,-150.0,0.000367,120]
[423369376,1780067544000,-1000.0,0.00036578,10]
[423369353,1780067544000,-1000.0,0.00036304,10]
[423369372,1780067544000,-5000.0,0.00036571,2]
[423369352,1780067544000,-1000.0,0.00036289,10]
[423369351,1780067544000,-168.91013242,0.00036285,7]
[423369344,1780067544000,-1326.558441,0.00036192,7]
[423369345,1780067544000,-1350.79935429,0.00036194,2]
[423369346,1780067544000,-399.66,0.00036207,2]
[423369347,1780067544000,-1000.0,0.00036209,114]
[423369350,1780067544000,-58844.129149,0.00036253,7]
[423369348,1780067544000,-2318.0,0.0003622,11]
[423369354,1780067544000,-9958.2869,0.00036349,2]
[423369356,1780067544000,-500.0,0.00036405,2]
[423369358,1780067544000,-152.0,0.00036432,21]
[423369359,1780067544000,-2515.06,0.00036438,10]
[423369360,1780067544000,-1550.0,0.00036438,30]
[423369349,1780067544000,-9958.2869,0.00036221,2]
[423369370,1780067544000,-1000.0,0.00036563,10]
[423369377,1780067544000,-5000.0,0.00036578,2]
[423369357,1780067544000,-1000.0,0.00036426,10]
[423369369,1780067544000,-1981.8935409,0.00036507,87]
[423369368,1780067544000,-1981.8935409,0.00036507,87]
[423369378,1780067544000,-5000.0,0.00036578,2]
[423369365,1780067544000,-32220.5,0.000365,14]
[423369367,1780067544000,-5531.0,0.000365,5]
[423369361,1780067544000,-486.49789824,0.00036438,7]
[423369364,1780067544000,-9958.2869,0.00036477,2]
[423369362,1780067544000,-1000.0,0.00036441,10]
[423369363,1780067544000,-796.7,0.00036469,60]
[423369355,1780067544000,-137263.0,0.000364,30]
[423369366,1780067544000,-596.66,0.000365,14]
[423369445,1780067545000,-1000.0,0.00036852,10]
[423369446,1780067545000,-1590.0,0.0003686,11]
[423369449,1780067545000,-2510.35,0.00036885,10]
[423369454,1780067545000,-2534.56,0.00036918,10]
[423369442,1780067545000,-1000.0,0.00036837,10]
[423369453,1780067545000,-2534.57,0.00036908,10]
[423369434,1780067545000,-203.02623,0.000368,7]
[423369443,1780067545000,-350.0,0.00036849,5]
[423369437,1780067545000,-400.197715,0.000368,7]
[423369438,1780067545000,-400.197708,0.000368,7]
[423369431,1780067545000,-258.876513,0.000368,7]
[423369451,1780067545000,-150.0,0.000369,120]
[423369444,1780067545000,-150.0,0.0003685,120]
[423369450,1780067545000,-7756.76,0.00036888,10]
[423369463,1780067545000,-5000.0,0.00036976,2]
[423369448,1780067545000,-150.0,0.0003688,2]
[423369452,1780067545000,-700.0,0.000369,13]
[423369456,1780067545000,-150.0,0.0003695,120]
[423369457,1780067545000,-1000.0,0.00036974,10]
[423369455,1780067545000,-5000.0,0.00036919,10]
[423369465,1780067545000,-5000.0,0.00036976,2]
[423369462,1780067545000,-5000.0,0.00036976,2]
[423369464,1780067545000,-5000.0,0.00036976,2]
[423369466,1780067545000,-1550.0,0.00036986,30]
[423369461,1780067545000,-5000.0,0.00036976,2]
[423369459,1780067545000,-5000.0,0.00036976,2]
[423369458,1780067545000,-5000.0,0.00036976,2]
[423369460,1780067545000,-5000.0,0.00036976,2]
[423369430,1780067545000,-158.848411,0.000368,7]
[423369447,1780067545000,-9958.2869,0.00036861,2]
[423369435,1780067545000,-400.197715,0.000368,7]
[423369405,1780067545000,-252.582498,0.000368,7]
[423369429,1780067545000,-258.876505,0.000368,7]
[423369467,1780067545000,-1000.0,0.00036989,10]
[423369407,1780067545000,-252.582498,0.000368,7]
[423369406,1780067545000,-252.582498,0.000368,7]
[423369408,1780067545000,-252.582506,0.000368,7]
[423369411,1780067545000,-199.61894,0.000368,7]
[423369409,1780067545000,-199.61894,0.000368,7]
[423369410,1780067545000,-199.61894,0.000368,7]
[423369412,1780067545000,-325.729448,0.000368,7]
[423369413,1780067545000,-199.618944,0.000368,7]
[423369414,1780067545000,-325.729448,0.000368,7]
[423369415,1780067545000,-325.729448,0.000368,7]
[423369417,1780067545000,-151.0,0.000368,7]
[423369427,1780067545000,-258.876505,0.000368,7]
[423369428,1780067545000,-158.848411,0.000368,7]
[423369416,1780067545000,-325.729448,0.000368,7]
[423369418,1780067545000,-190.188066,0.000368,7]
[423369419,1780067545000,-275.910508,0.000368,7]
[423369421,1780067545000,-275.910508,0.000368,7]
[423369423,1780067545000,-275.910508,0.000368,7]
[423369420,1780067545000,-190.188066,0.000368,7]
[423369426,1780067545000,-258.876505,0.000368,7]
[423369425,1780067545000,-190.188066,0.000368,7]
[423369424,1780067545000,-275.910509,0.000368,7]
[423369422,1780067545000,-190.188066,0.000368,7]
[423369433,1780067545000,-158.84842,0.000368,7]
[423369440,1780067545000,-2507.14,0.00036819,10]
[423369432,1780067545000,-158.848411,0.000368,7]
[423369439,1780067545000,-150.0,0.000368,120]
[423369436,1780067545000,-400.197715,0.000368,7]
[423369441,1780067545000,-349.02060276,0.00036822,2]
[423369469,1780067545000,-1000.0,0.00036999,38]
[423369489,1780067545000,-213.717974,0.00037,7]
[423369468,1780067545000,-9958.2869,0.00036989,2]
[423369499,1780067545000,-226.039017,0.00037,7]
[423369503,1780067545000,-500.0,0.00037,7]
[423369505,1780067545000,-151.0,0.00037,7]
[423369509,1780067545000,-30643.64,0.00037,25]
[423369519,1780067545000,-191.37,0.00037056,14]
[423369508,1780067545000,-309.0,0.00037,30]
[423369510,1780067545000,-150.0,0.00037,120]
[423369512,1780067545000,-150.0,0.00037,2]
[423369516,1780067545000,-201.08,0.00037056,14]
[423369511,1780067545000,-161.0,0.00037,120]
[423369520,1780067545000,-183.24,0.00037056,14]
[423369513,1780067545000,-181.772,0.00037,2]
[423369514,1780067545000,-150.0,0.0003705,120]
[423369517,1780067545000,-191.36,0.00037056,14]
[423369518,1780067545000,-191.36,0.00037056,14]
[423369515,1780067545000,-201.08,0.00037056,14]
[423369522,1780067545000,-201.09,0.00037056,14]
[423369533,1780067545000,-224.23280446,0.00037146,5]
[423369532,1780067545000,-152.0,0.00037146,22]
[423369521,1780067545000,-183.25,0.00037056,14]
[423369525,1780067545000,-1000.0,0.00037111,10]
[423369528,1780067545000,-150.0,0.00037125,120]
[423369523,1780067545000,-201.08,0.00037056,14]
[423369531,1780067545000,-1000.0,0.00037145,43]
[423369524,1780067545000,-234563.00296994,0.000371,2]
[423369526,1780067545000,-9958.2869,0.00037117,2]
[423369530,1780067545000,-1000.0,0.00037126,10]
[423369527,1780067545000,-150.0,0.00037125,120]
[423369478,1780067545000,-1626.0,0.00037,2]
[423369497,1780067545000,-233.934592,0.00037,7]
[423369501,1780067545000,-151.0,0.00037,7]
[423369529,1780067545000,-150.0,0.00037125,120]
[423369502,1780067545000,-500.0,0.00037,7]
[423369481,1780067545000,-316.0,0.00037,2]
[423369479,1780067545000,-336.0,0.00037,2]
[423369477,1780067545000,-280.67604341,0.00037,2]
[423369480,1780067545000,-642.22814117,0.00037,2]
[423369471,1780067545000,-1775.74993696,0.00037,20]
[423369470,1780067545000,-1000.0,0.00036999,35]
[423369472,1780067545000,-365.0,0.00037,2]
[423369475,1780067545000,-500.0,0.00037,14]
[423369504,1780067545000,-500.0,0.00037,7]
[423369473,1780067545000,-168.83454556,0.00037,2]
[423369476,1780067545000,-923.0,0.00037,2]
[423369482,1780067545000,-158.0,0.00037,2]
[423369487,1780067545000,-151.0,0.00037,7]
[423369485,1780067545000,-151.0,0.00037,7]
[423369486,1780067545000,-213.717974,0.00037,7]
[423369474,1780067545000,-4500.0,0.00037,2]
[423369483,1780067545000,-151.0,0.00037,7]
[423369500,1780067545000,-151.0,0.00037,7]
[423369484,1780067545000,-151.0,0.00037,7]
[423369498,1780067545000,-226.039021,0.00037,7]
[423369495,1780067545000,-226.039021,0.00037,7]
[423369506,1780067545000,-500.0,0.00037,7]
[423369496,1780067545000,-226.039021,0.00037,7]
[423369507,1780067545000,-203.37937694,0.00037,30]
[423369494,1780067545000,-233.934602,0.00037,7]
[423369491,1780067545000,-233.934602,0.00037,7]
[423369488,1780067545000,-213.717974,0.00037,7]
[423369490,1780067545000,-213.717974,0.00037,7]
[423369493,1780067545000,-151.0,0.00037,7]
[423369534,1780067545000,-152.0,0.00037146,5]
[423369492,1780067545000,-233.934602,0.00037,7]
[423369573,1780067546000,-5113.95130202,0.00037373,2]
[423369578,1780067546000,-250.0,0.00037373,2]
[423369576,1780067546000,-250.0,0.00037373,2]
[423369584,1780067546000,-500.0,0.00037393,120]
[423369575,1780067546000,-250.0,0.00037373,2]
[423369564,1780067546000,-1474.49190058,0.000373,120]
[423369574,1780067546000,-250.0,0.00037373,2]
[423369571,1780067546000,-5000.0,0.00037373,2]
[423369567,1780067546000,-359.61405882,0.000373,120]
[423369569,1780067546000,-5000.0,0.00037373,2]
[423369566,1780067546000,-755.4426853,0.000373,120]
[423369585,1780067546000,-500.0,0.00037393,120]
[423369577,1780067546000,-250.0,0.00037373,2]
[423369597,1780067546000,-589.3315971,0.00037393,120]
[423369581,1780067546000,-5000.0,0.00037373,2]
[423369582,1780067546000,-5000.0,0.00037373,2]
[423369583,1780067546000,-1000.0,0.00037385,10]
[423369579,1780067546000,-250.0,0.00037373,2]
[423369587,1780067546000,-500.0,0.00037393,120]
[423369586,1780067546000,-500.0,0.00037393,120]
[423369588,1780067546000,-610.0842928,0.00037393,120]
[423369599,1780067546000,-477.1706186,0.00037393,120]
[423369590,1780067546000,-500.0,0.00037393,120]
[423369594,1780067546000,-500.0,0.00037393,120]
[423369598,1780067546000,-150.9200105,0.00037393,120]
[423369595,1780067546000,-500.0,0.00037393,120]
[423369593,1780067546000,-211.4138276,0.00037393,120]
[423369570,1780067546000,-5000.0,0.00037373,2]
[423369580,1780067546000,-260.24853698,0.00037373,2]
[423369565,1780067546000,-165.64168971,0.000373,120]
[423369553,1780067546000,-1028.11360074,0.000373,120]
[423369572,1780067546000,-5000.0,0.00037373,2]
[423369591,1780067546000,-500.0,0.00037393,120]
[423369535,1780067546000,-152.0,0.00037146,5]
[423369537,1780067546000,-1021.0,0.00037217,2]
[423369546,1780067546000,-342.38054812,0.000373,120]
[423369541,1780067546000,-1000.0,0.00037248,10]
[423369545,1780067546000,-515.69262603,0.000373,120]
[423369547,1780067546000,-979.60253031,0.000373,120]
[423369542,1780067546000,-1550.0,0.0003726,30]
[423369543,1780067546000,-1000.0,0.00037263,10]
[423369536,1780067546000,-169.13,0.00037178,5]
[423369539,1780067546000,-6066.0,0.00037217,2]
[423369538,1780067546000,-3638.0,0.00037217,2]
[423369540,1780067546000,-9958.2869,0.00037245,2]
[423369544,1780067546000,-996.0,0.00037286,14]
[423369548,1780067546000,-609.75080348,0.000373,120]
[423369559,1780067546000,-674.74610462,0.000373,120]
[423369551,1780067546000,-775.65340832,0.000373,120]
[423369554,1780067546000,-1004.99159889,0.000373,120]
[423369555,1780067546000,-2341.79346203,0.000373,120]
[423369549,1780067546000,-986.17982912,0.000373,120]
[423369557,1780067546000,-848.71408364,0.000373,120]
[423369550,1780067546000,-514.9307097,0.000373,120]
[423369560,1780067546000,-1031.22384984,0.000373,120]
[423369556,1780067546000,-1966.16350451,0.000373,120]
[423369552,1780067546000,-588.16446486,0.000373,120]
[423369558,1780067546000,-3283.62274669,0.000373,120]
[423369563,1780067546000,-1884.39236652,0.000373,120]
[423369561,1780067546000,-1243.04091773,0.000373,120]
[423369562,1780067546000,-2864.48198912,0.000373,120]
[423369568,1780067546000,-9958.2869,0.00037373,2]
[423369596,1780067546000,-500.0,0.00037393,120]
[423369601,1780067546000,-1000.0,0.000374,10]
[423369592,1780067546000,-500.0,0.00037393,120]
[423369631,1780067546000,-1000.0,0.00037674,10]
[423369634,1780067546000,-5000.0,0.00037771,2]
[423369629,1780067546000,-300.0,0.00037663,2]
[423369633,1780067546000,-5000.0,0.00037771,2]
[423369636,1780067546000,-5000.0,0.00037771,2]
[423369639,1780067546000,-250.0,0.00037771,2]
[423369643,1780067546000,-250.0,0.00037771,2]
[423369641,1780067546000,-250.0,0.00037771,2]
[423369642,1780067546000,-250.0,0.00037771,2]
[423369650,1780067546000,-1000.0,0.000378,7]
[423369647,1780067546000,-1000.0,0.000378,7]
[423369644,1780067546000,-250.0,0.00037771,2]
[423369645,1780067546000,-1000.0,0.00037796,10]
[423369640,1780067546000,-250.0,0.00037771,2]
[423369651,1780067546000,-1000.0,0.000378,7]
[423369649,1780067546000,-1000.0,0.000378,7]
[423369646,1780067546000,-1000.0,0.000378,7]
[423369648,1780067546000,-1000.0,0.000378,7]
[423369653,1780067546000,-1000.0,0.000378,7]
[423369652,1780067546000,-1000.0,0.000378,7]
[423369654,1780067546000,-1000.0,0.000378,7]
[423369656,1780067546000,-1000.0,0.000378,7]
[423369655,1780067546000,-1000.0,0.000378,7]
[423369661,1780067546000,-1000.0,0.000378,7]
[423369659,1780067546000,-1000.0,0.000378,7]
[423369660,1780067546000,-1000.0,0.000378,7]
[423369589,1780067546000,-500.0,0.00037393,120]
[423369658,1780067546000,-1000.0,0.000378,7]
[423369657,1780067546000,-1000.0,0.000378,7]
[423369635,1780067546000,-5000.0,0.00037771,2]
[423369632,1780067546000,-500.0,0.00037764,2]
[423369662,1780067546000,-1000.0,0.000378,7]
[423369628,1780067546000,-300.0,0.00037663,2]
[423369630,1780067546000,-311.6,0.00037663,2]
[423369600,1780067546000,-230.4534095,0.00037393,120]
[423369603,1780067546000,-400.0,0.00037449,2]
[423369602,1780067546000,-9010.31685925,0.000374,7]
[423369604,1780067546000,-500.0,0.000375,14]
[423369606,1780067546000,-58844.129149,0.000375,7]
[423369610,1780067546000,-1550.0,0.00037534,30]
[423369605,1780067546000,-500.0,0.000375,14]
[423369607,1780067546000,-238860.65568072,0.000375,2]
[423369608,1780067546000,-9958.2869,0.00037501,2]
[423369609,1780067546000,-1000.0,0.00037522,10]
[423369613,1780067546000,-45000.0,0.00037559,7]
[423369620,1780067546000,-183.25,0.00037604,14]
[423369622,1780067546000,-9958.2869,0.00037629,2]
[423369611,1780067546000,-1000.0,0.00037537,10]
[423369616,1780067546000,-4416.55781297,0.0003759,2]
[423369626,1780067546000,-300.0,0.00037663,2]
[423369638,1780067546000,-5000.0,0.00037771,2]
[423369637,1780067546000,-5000.0,0.00037771,2]
[423369627,1780067546000,-300.0,0.00037663,2]
[423369618,1780067546000,-137263.0,0.000376,30]
[423369623,1780067546000,-1000.0,0.00037659,10]
[423369614,1780067546000,-105000.0,0.00037559,7]
[423369621,1780067546000,-151.955364,0.00037605,14]
[423369612,1780067546000,-50000.0,0.00037558,2]
[423369615,1780067546000,-498.98,0.00037567,37]
[423369624,1780067546000,-300.0,0.00037663,2]
[423369617,1780067546000,-200.0,0.000376,20]
[423369625,1780067546000,-300.0,0.00037663,2]
[423369619,1780067546000,-183.24,0.00037604,14]
[423369701,1780067547000,-1000.0,0.000378,7]
[423369705,1780067547000,-1000.0,0.000378,7]
[423369711,1780067547000,-1000.0,0.000378,7]
[423369710,1780067547000,-1000.0,0.000378,7]
[423369717,1780067547000,-1000.0,0.000378,7]
[423369697,1780067547000,-1000.0,0.000378,7]
[423369695,1780067547000,-1000.0,0.000378,7]
[423369691,1780067547000,-1000.0,0.000378,7]
[423369694,1780067547000,-1000.0,0.000378,7]
[423369693,1780067547000,-1000.0,0.000378,7]
[423369696,1780067547000,-1000.0,0.000378,7]
[423369702,1780067547000,-1000.0,0.000378,7]
[423369707,1780067547000,-1000.0,0.000378,7]
[423369713,1780067547000,-1000.0,0.000378,7]
[423369712,1780067547000,-1000.0,0.000378,7]
[423369704,1780067547000,-1000.0,0.000378,7]
[423369709,1780067547000,-1000.0,0.000378,7]
[423369708,1780067547000,-1000.0,0.000378,7]
[423369706,1780067547000,-1000.0,0.000378,7]
[423369715,1780067547000,-1000.0,0.000378,7]
[423369718,1780067547000,-1000.0,0.000378,7]
[423369720,1780067547000,-1000.0,0.000378,7]
[423369724,1780067547000,-1000.0,0.000378,7]
[423369719,1780067547000,-1000.0,0.000378,7]
[423369716,1780067547000,-1000.0,0.000378,7]
[423369714,1780067547000,-1000.0,0.000378,7]
[423369698,1780067547000,-1000.0,0.000378,7]
[423369703,1780067547000,-1000.0,0.000378,7]
[423369692,1780067547000,-1000.0,0.000378,7]
[423369678,1780067547000,-1000.0,0.000378,7]
[423369700,1780067547000,-1000.0,0.000378,7]
[423369663,1780067547000,-1000.0,0.000378,7]
[423369665,1780067547000,-1000.0,0.000378,7]
[423369667,1780067547000,-1000.0,0.000378,7]
[423369666,1780067547000,-1000.0,0.000378,7]
[423369664,1780067547000,-1000.0,0.000378,7]
[423369675,1780067547000,-1000.0,0.000378,7]
[423369668,1780067547000,-1000.0,0.000378,7]
[423369669,1780067547000,-1000.0,0.000378,7]
[423369671,1780067547000,-1000.0,0.000378,7]
[423369676,1780067547000,-1000.0,0.000378,7]
[423369672,1780067547000,-1000.0,0.000378,7]
[423369670,1780067547000,-1000.0,0.000378,7]
[423369673,1780067547000,-1000.0,0.000378,7]
[423369674,1780067547000,-1000.0,0.000378,7]
[423369677,1780067547000,-1000.0,0.000378,7]
[423369679,1780067547000,-1000.0,0.000378,7]
[423369680,1780067547000,-1000.0,0.000378,7]
[423369681,1780067547000,-1000.0,0.000378,7]
[423369687,1780067547000,-1000.0,0.000378,7]
[423369683,1780067547000,-1000.0,0.000378,7]
[423369682,1780067547000,-1000.0,0.000378,7]
[423369684,1780067547000,-1000.0,0.000378,7]
[423369686,1780067547000,-1000.0,0.000378,7]
[423369685,1780067547000,-1000.0,0.000378,7]
[423369689,1780067547000,-270.0,0.000378,7]
[423369688,1780067547000,-1000.0,0.000378,7]
[423369690,1780067547000,-1000.0,0.000378,7]
[423369699,1780067547000,-1000.0,0.000378,7]
[423369721,1780067547000,-1000.0,0.000378,7]
[423369743,1780067547000,-1102.33,0.00037872,7]
[423369723,1780067547000,-1000.0,0.000378,7]
[423369757,1780067547000,-151.0,0.00037925,7]
[423369752,1780067547000,-153.0,0.00037925,7]
[423369756,1780067547000,-154.0,0.00037925,7]
[423369753,1780067547000,-153.0,0.00037925,7]
[423369761,1780067547000,-1000.0,0.00037948,10]
[423369762,1780067547000,-1000.0,0.00037999,39]
[423369771,1780067547000,-500.0,0.00038,14]
[423369769,1780067547000,-222.40048601,0.00038,7]
[423369766,1780067547000,-169.3,0.00038,5]
[423369765,1780067547000,-10000.0,0.00038,120]
[423369770,1780067547000,-2363.94415613,0.00038,7]
[423369764,1780067547000,-42990.26046,0.00038,5]
[423369767,1780067547000,-84314.44616078,0.00038,7]
[423369763,1780067547000,-1000.0,0.00037999,48]
[423369768,1780067547000,-158.23198202,0.00038,3]
[423369772,1780067547000,-700.0,0.00038,5]
[423369774,1780067547000,-10000.0,0.00038,7]
[423369773,1780067547000,-210.0,0.00038,2]
[423369775,1780067547000,-10000.0,0.00038,7]
[423369776,1780067547000,-309.0,0.00038,30]
[423369779,1780067547000,-1458.8,0.00038029,2]
[423369783,1780067547000,-151.0,0.00038071,7]
[423369778,1780067547000,-600.0,0.00038014,120]
[423369780,1780067547000,-1000.0,0.0003807,10]
[423369777,1780067547000,-5000.0,0.00038,2]
[423369782,1780067547000,-151.0,0.00038071,7]
[423369722,1780067547000,-1000.0,0.000378,7]
[423369755,1780067547000,-154.0,0.00037925,7]
[423369751,1780067547000,-153.0,0.00037925,7]
[423369781,1780067547000,-151.0,0.00038071,7]
[423369759,1780067547000,-1000.0,0.00037933,10]
[423369754,1780067547000,-153.0,0.00037925,7]
[423369726,1780067547000,-1000.0,0.000378,7]
[423369727,1780067547000,-1000.0,0.000378,7]
[423369725,1780067547000,-1000.0,0.000378,7]
[423369728,1780067547000,-1000.0,0.000378,7]
[423369736,1780067547000,-350.0,0.00037808,5]
[423369732,1780067547000,-1000.0,0.000378,7]
[423369729,1780067547000,-1000.0,0.000378,7]
[423369734,1780067547000,-1000.0,0.000378,7]
[423369733,1780067547000,-1000.0,0.000378,7]
[423369731,1780067547000,-1000.0,0.000378,7]
[423369735,1780067547000,-1000.0,0.000378,7]
[423369730,1780067547000,-1000.0,0.000378,7]
[423369737,1780067547000,-1550.0,0.00037808,30]
[423369740,1780067547000,-996.0,0.00037841,15]
[423369738,1780067547000,-379.0,0.00037808,10]
[423369760,1780067547000,-418.0,0.00037944,2]
[423369758,1780067547000,-153.0,0.00037925,7]
[423369750,1780067547000,-151.0,0.00037925,7]
[423369747,1780067547000,-1545.0,0.00037925,7]
[423369748,1780067547000,-1545.0,0.00037925,7]
[423369749,1780067547000,-1545.0,0.00037925,7]
[423369746,1780067547000,-1545.0,0.00037925,7]
[423369739,1780067547000,-1000.0,0.00037811,10]
[423369742,1780067547000,-1563.78401514,0.00037863,2]
[423369744,1780067547000,-206.00727526,0.0003788,2]
[423369741,1780067547000,-3436.21598486,0.00037863,2]
[423369745,1780067547000,-498.98,0.000379,39]
[423369812,1780067548000,-216.7805653,0.00038082,30]
[423369813,1780067548000,-441.0,0.00038082,2]
[423369814,1780067548000,-441.0,0.00038082,2]
[423369816,1780067548000,-441.0,0.00038082,2]
[423369817,1780067548000,-441.0,0.00038082,2]
[423369820,1780067548000,-441.0,0.00038082,2]
[423369821,1780067548000,-441.0,0.00038082,2]
[423369818,1780067548000,-441.0,0.00038082,2]
[423369819,1780067548000,-441.0,0.00038082,2]